bitfinex-derivatives/quotes_BTCF0:USTF0_20250411
["timestamp","ask_amount","ask_price","bid_price","bid_amount"]
[1744396808760,0.0725,83922.0,83913.0,0.4338182]
[1744396809363,0.03667878,83922.0,83913.0,0.4338182]
[1744396809569,0.00017878,83922.0,83913.0,0.4338182]
[1744396809779,7.291e-05,83933.0,83922.0,0.23839]
[1744396809968,7.291e-05,83933.0,83926.0,0.3575997]
[1744396810169,0.3608,83934.0,83926.0,0.3575997]
[1744396810470,0.0596007,83932.0,83926.0,0.36657833]
[1744396810667,0.0368,83933.0,83926.0,0.36657833]
[1744396810864,0.21330384,83927.0,83926.0,0.36657833]
[1744396811471,0.33251214,83927.0,83926.0,0.36657833]
[1744396811777,0.21330384,83927.0,83926.0,0.36657833]
[1744396811970,4e-05,83927.0,83926.0,0.37796957]
[1744396812378,0.06464901,83940.0,83934.0,0.1191984]
[1744396812379,0.005,83940.0,83934.0,0.1191984]
[1744396812572,0.005,83940.0,83934.0,0.3575884]
[1744396812573,0.3608,83936.0,83934.0,0.3575884]
[1744396812775,0.11937568,83935.0,83934.0,0.3575884]
[1744396813076,0.11941568,83935.0,83934.0,0.3575884]
[1744396813276,0.15621568,83935.0,83934.0,0.4317884]
[1744396813669,0.15621568,83935.0,83934.0,0.0348]
[1744396813985,0.1788075,83930.0,83929.0,0.1192055]
[1744396814275,0.1788075,83930.0,83929.0,0.3575955]
[1744396814478,0.1788075,83930.0,83929.0,0.3923955]
[1744396814972,0.2158075,83930.0,83929.0,0.3923955]
[1744396815177,0.11941568,83935.0,83934.0,0.1191984]
[1744396815479,0.11941568,83935.0,83934.0,0.3923884]
[1744396815480,0.11937568,83935.0,83934.0,0.3923884]
[1744396815669,0.11937568,83935.0,83934.0,0.4296884]
[1744396815870,0.19337568,83935.0,83934.0,0.4296884]
[1744396816077,0.19341568,83935.0,83934.0,0.1539984]
[1744396816268,0.19337568,83935.0,83934.0,0.1539984]
[1744396816469,0.19341568,83935.0,83934.0,0.1539984]
[1744396816878,0.19341568,83935.0,83934.0,0.0348]
[1744396817578,0.1192083,83927.0,83926.0,0.18765884]
[1744396817976,0.0386,83927.0,83926.0,0.42604884]
[1744396818279,0.3608,83928.0,83927.0,0.1192083]
[1744396818480,0.3608,83928.0,83927.0,0.3951983]
[1744396819179,0.3608,83928.0,83927.0,0.4300983]
[1744396820177,0.4800069,83928.0,83927.0,0.4300983]
[1744396821073,0.3608,83928.0,83927.0,0.4300983]
[1744396821380,0.1192069,83928.0,83927.0,0.4300983]
[1744396821676,0.1573043,83930.0,83929.0,0.1192055]
[1744396821874,0.0381,83930.0,83929.0,0.3575955]
[1744396822072,0.3989,83930.0,83929.0,0.4349955]
[1744396822274,0.5561041,83930.0,83929.0,0.4349955]
[1744396823477,0.4369,83930.0,83929.0,0.4349955]
[1744396823678,0.3608,83930.0,83929.0,0.4349955]
[1744396823981,0.36084,83930.0,83929.0,0.4349955]
[1744396824181,0.4800441,83930.0,83929.0,0.4349955]
[1744396824377,0.4800041,83930.0,83929.0,0.4349955]
[1744396824577,0.4800441,83930.0,83929.0,0.4349955]
[1744396829003,0.00017878,83935.0,83934.0,0.1191984]
[1744396829294,0.00017878,83935.0,83934.0,0.3575884]
[1744396829485,0.00021878,83935.0,83934.0,0.4298884]
[1744396832389,0.03661878,83935.0,83934.0,0.4298884]
[1744396834794,0.00021878,83935.0,83934.0,0.4298884]
[1744396836995,0.48021568,83935.0,83934.0,0.0354]
[1744396837194,0.48021568,83935.0,83913.0,0.4204136]
[1744396837195,0.1788096,83930.0,83929.0,0.1192055]
[1744396837702,0.1788096,83930.0,83929.0,0.1559055]
[1744396839202,0.1192197,83919.0,83915.0,0.21380086]
[1744396839411,0.8408197,83919.0,83915.0,0.21380086]
[1744396839904,0.9114197,83919.0,83913.0,0.21380086]
[1744396841495,1.1614197,83919.0,83913.0,0.21380086]
[1744396841700,0.1192268,83914.0,83913.0,0.21380086]
[1744396842207,0.4406268,83914.0,83913.0,0.21380086]
[1744396842402,0.1192325,83910.0,83909.0,0.28491484]
[1744396842599,0.1192396,83905.0,83898.0,0.60447056]
[1744396842797,0.4800396,83905.0,83901.0,0.00017878]
[1744396842999,0.1192438,83902.0,83901.0,0.00017878]
[1744396843400,0.0714,83904.0,83903.0,0.1192424]
[1744396843709,0.00017878,83918.0,83909.0,0.1192339]
[1744396843710,0.3608,83910.0,83909.0,0.1192339]
[1744396844003,0.4800325,83910.0,83909.0,0.3576239]
[1744396844604,0.4800325,83910.0,83909.0,0.1192339]
[1744396844905,0.1192325,83910.0,83909.0,0.1192339]
[1744396845108,0.1553325,83910.0,83909.0,0.1192339]
[1744396847006,0.3608,83912.0,83909.0,0.3576239]
[1744396847208,5.401e-05,83915.0,83914.0,0.1192268]
[1744396847400,0.11939988,83918.0,83917.0,0.1192225]
[1744396847599,0.11939988,83918.0,83917.0,0.3576125]
[1744396847798,0.00017878,83918.0,83917.0,0.3576125]
[1744396849009,0.00021878,83918.0,83917.0,0.3576125]
[1744396849209,0.00021878,83918.0,83917.0,0.4311125]
[1744396853109,0.11943988,83918.0,83917.0,0.4311125]
[1744396853307,0.11943988,83918.0,83917.0,0.3954125]
[1744396853608,0.19103988,83918.0,83917.0,0.3954125]
[1744396855515,0.19103988,83918.0,83917.0,0.4307125]
[1744396855818,0.19103988,83918.0,83917.0,0.3954125]
[1744396856115,0.07181878,83918.0,83917.0,0.3954125]
[1744396856315,0.19103988,83918.0,83917.0,0.4307125]
[1744396856707,0.19103988,83918.0,83917.0,0.3954125]
[1744396858913,0.19103988,83918.0,83917.0,0.0378]
[1744396859115,0.1192335,83912.0,83911.0,0.1788396]
[1744396859309,0.1192335,83912.0,83911.0,0.0363]
[1744396859505,0.1192335,83912.0,83888.0,0.4749312]
[1744396859506,0.1192438,83902.0,83888.0,0.4153]
[1744396859716,0.1192438,83902.0,83894.0,0.0596274]
[1744396860017,0.1192438,83902.0,83883.0,0.1192704]
[1744396860212,0.1527438,83902.0,83884.0,0.0596346]
[1744396860406,0.1527438,83902.0,83888.0,0.1192627]
[1744396860613,0.0596302,83891.0,83882.0,0.0337]
[1744396860811,0.1192708,83883.0,83882.0,0.1192661]
[1744396861313,0.1527708,83883.0,83882.0,0.1192661]
[1744396862011,0.1527708,83883.0,83882.0,0.1564661]
[1744396862213,0.1881708,83883.0,83882.0,0.1564661]
[1744396862413,0.1881708,83883.0,83882.0,0.16524673]
[1744396863010,0.1881708,83883.0,83882.0,0.00878063]
[1744396863214,0.119278,83878.0,83877.0,0.0347]
[1744396863417,0.1192822,83875.0,83874.0,0.00017878]
[1744396863615,0.1192822,83875.0,83874.0,0.21380108]
[1744396863815,0.1192822,83875.0,83874.0,0.00017878]
[1744396864022,0.1192822,83875.0,83874.0,0.11946238]
[1744396864220,0.1192822,83875.0,83874.0,0.00017878]
[1744396864411,0.1192822,83875.0,83874.0,0.00913559]
[1744396864625,0.1192822,83875.0,83874.0,0.11946238]
[1744396865217,0.1192822,83875.0,83874.0,0.15416238]
[1744396865420,0.3608,83895.0,83881.0,0.0596366]
[1744396865725,0.480068,83885.0,83884.0,0.1192694]
[1744396865915,0.00017878,83891.0,83888.0,0.1192637]
[1744396866119,0.1544611,83890.0,83888.0,0.1192637]
[1744396866318,0.67985489,83889.0,83888.0,0.1192637]
[1744396866821,0.56063259,83889.0,83888.0,0.1192637]
[1744396867020,0.56059259,83889.0,83888.0,0.3576537]
[1744396867325,0.67989489,83889.0,83888.0,0.3925537]
[1744396867519,0.67985489,83889.0,83888.0,0.3925537]
[1744396867720,0.67989489,83889.0,83888.0,0.3925537]
[1744396867919,0.26129489,83889.0,83888.0,0.3925537]
[1744396869424,0.1193023,83889.0,83888.0,0.3925537]
[1744396870727,0.1193023,83889.0,83888.0,0.1541637]
[1744396870929,0.1193023,83889.0,83888.0,0.3925537]
[1744396871735,0.1193023,83889.0,83888.0,0.3576537]
[1744396872820,0.1789226,83877.0,83874.0,0.06895466]
[1744396873026,0.395,83888.0,83876.0,0.23839]
[1744396873221,0.0342,83888.0,83887.0,0.1192652]
[1744396873519,0.1193033,83889.0,83888.0,0.1192637]
[1744396873832,0.1192633,83889.0,83888.0,0.1192637]
[1744396874032,0.1193033,83889.0,83888.0,0.1192637]
[1744396874332,4e-05,83889.0,83888.0,0.1192637]
[1744396874630,4e-05,83889.0,83888.0,0.4282537]
[1744396874830,0.00017878,83891.0,83890.0,0.1192609]
[1744396875025,0.00017878,83891.0,83890.0,0.3576509]
[1744396875220,0.00017878,83891.0,83890.0,0.4281509]
[1744396877036,0.00021878,83891.0,83890.0,0.4281509]
[1744396877726,5.401e-05,83899.0,83898.0,0.1192495]
[1744396877923,0.14199259,83904.0,83903.0,0.1192424]
[1744396878125,0.14199259,83904.0,83903.0,0.3576324]
[1744396878320,0.14199259,83904.0,83903.0,0.4289324]
[1744396879228,9e-08,83904.0,83903.0,0.4289324]
[1744396879432,0.00017878,83912.0,83911.0,0.119231]
[1744396879631,0.00017878,83912.0,83911.0,0.718421]
[1744396880227,0.00017878,83912.0,83911.0,0.789721]
[1744396880530,0.00021878,83912.0,83911.0,0.789721]
[1744396880830,0.00021878,83912.0,83911.0,0.428921]
[1744396882724,0.11944838,83912.0,83911.0,0.428921]
[1744396882925,0.00021878,83912.0,83911.0,0.428921]
[1744396883230,0.11944838,83912.0,83911.0,0.428921]
[1744396883436,0.11944838,83912.0,83911.0,0.0351]
[1744396883736,0.1192438,83902.0,83901.0,0.1192445]
[1744396884233,0.1192438,83902.0,83901.0,0.1604445]
[1744396884434,0.1604438,83902.0,83901.0,0.1604445]
[1744396885325,0.2005438,83902.0,83901.0,0.1604445]
[1744396886124,0.1192524,83896.0,83895.0,0.00017878]
[1744396886334,0.1192524,83896.0,83895.0,0.11943258]
[1744396886839,0.1593524,83896.0,83895.0,0.11943258]
[1744396887438,0.1984524,83896.0,83895.0,0.11943258]
[1744396887937,0.1984524,83896.0,83895.0,0.00017878]
[1744396888139,0.1984524,83896.0,83895.0,0.11943258]
[1744396888338,0.5592524,83896.0,83895.0,0.00017878]
[1744396888632,0.1789077,83884.0,83883.0,0.1192703]
[1744396889035,0.2385431,83884.0,83883.0,0.1192703]
[1744396890235,0.3213431,83884.0,83883.0,0.1192703]
[1744396890643,0.1192794,83877.0,83876.0,0.0405]
[1744396890932,0.1192808,83876.0,83875.0,0.01154806]
[1744396891132,0.2020808,83876.0,83875.0,0.00017878]
[1744396891335,0.2020808,83876.0,83875.0,0.11946098]
[1744396893224,0.2020808,83876.0,83875.0,0.15846098]
[1744396893432,0.3608,83885.0,83882.0,0.1192694]
[1744396893625,0.3608,83885.0,83883.0,0.039]
[1744396893626,0.13084,83884.0,83883.0,0.039]
[1744396893834,0.1904747,83884.0,83883.0,0.1582694]
[1744396894141,0.0807,83884.0,83883.0,0.1582694]
[1744396894342,0.1999694,83884.0,83883.0,0.1582694]
[1744396894641,0.1999694,83884.0,83883.0,0.1964694]
[1744396895138,5.401e-05,83888.0,83887.0,0.1192652]
[1744396895328,0.17906738,83892.0,83890.0,0.23839]
[1744396895529,0.17906738,83892.0,83891.0,0.3958495]
[1744396895834,0.17910738,83892.0,83891.0,0.3958495]
[1744396896028,0.25980738,83892.0,83891.0,0.3958495]
[1744396896435,0.08091878,83892.0,83891.0,0.3958495]
[1744396896636,0.20017678,83892.0,83891.0,0.3958495]
[1744396897248,0.20017678,83892.0,83891.0,0.1192595]
[1744396897441,0.1192666,83886.0,83885.0,0.1789]
[1744396897636,0.4800666,83886.0,83885.0,0.0596333]
[1744396898338,0.5603666,83886.0,83885.0,0.0596333]
[1744396899336,0.1192765,83879.0,83878.0,0.1789147]
[1744396899637,0.1192765,83879.0,83878.0,0.2172147]
[1744396900235,0.2015765,83879.0,83878.0,0.2172147]
[1744396900747,0.2015765,83879.0,83878.0,0.0383]
[1744396900934,0.2015765,83879.0,83878.0,0.157578]
[1744396904464,0.2015765,83879.0,83878.0,0.119278]
[1744396906348,0.1192808,83876.0,83875.0,0.00017878]
[1744396906847,0.2432808,83876.0,83875.0,0.00017878]
[1744396907445,0.2432808,83876.0,83875.0,0.11946098]
[1744396907646,0.2432808,83876.0,83875.0,0.15956098]
[1744396911350,0.2432808,83876.0,83875.0,0.04027878]
[1744396914651,0.2432808,83876.0,83875.0,0.00017878]
[1744396915045,0.1789561,83861.0,83860.0,0.1193017]
[1744396915442,0.1789561,83861.0,83860.0,0.00875292]
[1744396915640,0.1789561,83861.0,83856.0,0.041]
[1744396915641,0.1193078,83857.0,83856.0,0.041]
[1744396915847,0.1193078,83857.0,83856.0,0.29073132]
[1744396916447,0.2011078,83857.0,83856.0,0.41004052]
[1744396916646,0.1193078,83857.0,83856.0,0.41004052]
[1744396917047,0.1193078,83857.0,83856.0,0.44924052]
[1744396918255,0.1193078,83857.0,83856.0,0.45823382]
[1744396919150,0.0991522,83860.0,83856.0,0.45823382]
[1744396919151,0.1193055,83859.0,83858.0,0.1789581]
[1744396919649,0.1193055,83859.0,83858.0,0.4173481]
[1744396919854,0.1193055,83859.0,83858.0,0.2980431]
[1744396920250,0.0596369,83881.0,83860.0,0.0596517]
[1744396920447,0.0803,83870.0,83864.0,0.3576879]
[1744396920646,0.48027518,83865.0,83864.0,0.3576879]
[1744396920848,0.36097878,83865.0,83864.0,0.3576879]
[1744396921259,0.48027518,83865.0,83864.0,0.3576879]
[1744396921449,0.36097878,83865.0,83864.0,0.3576879]
[1744396921748,0.00017878,83865.0,83864.0,0.3576879]
[1744396922249,0.21326384,83870.0,83869.0,0.1192908]
[1744396922446,0.21326384,83870.0,83869.0,0.3576808]
[1744396923563,0.21330384,83870.0,83869.0,0.3576808]
[1744396924151,4e-05,83870.0,83869.0,0.7184808]
[1744396926454,0.10701869,83874.0,83873.0,0.1192851]
[1744396926659,0.10701869,83874.0,83873.0,0.3576751]
[1744396928459,5.401e-05,83876.0,83875.0,0.1192822]
[1744396928660,5.401e-05,83876.0,83875.0,0.3576722]
[1744396929465,0.10719747,83878.0,83877.0,0.1192794]
[1744396929664,0.10719747,83878.0,83877.0,0.3576694]
[1744396930953,0.22647547,83878.0,83877.0,0.3576694]
[1744396931462,0.58727547,83878.0,83877.0,0.23839]
[1744396931761,0.119295,83866.0,83865.0,0.00017878]
[1744396931955,0.119295,83866.0,83865.0,0.11947518]
[1744396932155,0.119295,83866.0,83865.0,0.35786518]
[1744396932354,0.201495,83866.0,83865.0,0.35786518]
[1744396933155,0.0596439,83872.0,83871.0,0.1192879]
[1744396934559,0.1789418,83868.0,83867.0,0.0596464]
[1744396934759,0.1789418,83868.0,83867.0,0.2980364]
[1744396934959,0.1789418,83868.0,83867.0,0.0596464]
[1744396936267,0.5397418,83868.0,83867.0,0.0596464]
[1744396936869,0.119295,83866.0,83865.0,0.00017878]
[1744396937259,0.203195,83866.0,83865.0,0.00017878]
[1744396940768,0.203195,83866.0,83850.0,0.0596582]
[1744396940769,0.3339,83866.0,83850.0,0.0596582]
[1744396940960,0.1193146,83853.0,83852.0,0.1193135]
[1744396941154,0.1193146,83853.0,83852.0,0.1789709]
[1744396941354,0.2004146,83853.0,83852.0,0.1789709]
[1744396941755,0.1193192,83849.0,83848.0,0.0427]
[1744396941968,0.1193192,83849.0,83848.0,0.1620206]
[1744396942155,0.0821,83849.0,83848.0,0.4004106]
[1744396942355,0.08214,83849.0,83848.0,0.4004106]
[1744396942560,0.2014592,83849.0,83848.0,0.4415106]
[1744396943365,0.2014592,83849.0,83848.0,0.23839]
[1744396943564,0.1193206,83848.0,83847.0,0.00477057]
[1744396943766,0.1193206,83848.0,83847.0,0.12409187]
[1744396943966,0.2014206,83848.0,83847.0,0.00477057]
[1744396944467,0.2014206,83848.0,83847.0,0.04347057]
[1744396944966,0.2014206,83848.0,83847.0,0.16279267]
[1744396945470,0.2014606,83848.0,83847.0,0.16279267]
[1744396945670,0.2014606,83848.0,83847.0,0.0525428]
[1744396949377,0.2014606,83848.0,83847.0,0.1718649]
[1744396951168,0.2014606,83848.0,83847.0,0.4102549]
[1744396951366,0.2014606,83848.0,83847.0,0.2909328]
[1744396952266,4e-05,83848.0,83847.0,0.4102549]
[1744396952572,0.14250786,83855.0,83854.0,0.1193121]
[1744396952777,0.14250786,83855.0,83854.0,0.1600121]
[1744396952963,0.14254786,83855.0,83854.0,0.4814021]
[1744396953467,0.00017878,83861.0,83860.0,0.1193036]
[1744396953659,0.00017878,83861.0,83860.0,0.7184936]
[1744396953858,0.00017878,83861.0,83860.0,0.8006936]
[1744396954166,0.00021878,83861.0,83860.0,0.8006936]
[1744396956769,0.11952088,83861.0,83860.0,0.8006936]
[1744396958874,0.08171878,83861.0,83860.0,0.8006936]
[1744396959088,0.00021878,83861.0,83860.0,0.8006936]
[1744396959669,0.11952088,83861.0,83860.0,0.8006936]
[1744396960375,0.00021878,83861.0,83860.0,0.8006936]
[1744396961770,0.00017878,83861.0,83860.0,0.8006936]
[1744396962076,0.00021878,83861.0,83860.0,0.8006936]
[1744396962774,0.00021878,83861.0,83860.0,0.4398936]
[1744396962971,0.11952088,83861.0,83860.0,0.4398936]
[1744396963671,0.08561878,83861.0,83860.0,0.4398936]
[1744396964068,0.20492088,83861.0,83860.0,0.4398936]
[1744396964268,0.00021878,83861.0,83860.0,0.8006936]
[1744396964773,0.00017878,83861.0,83860.0,0.8006936]
[1744396964969,0.00021878,83861.0,83860.0,0.8006936]
[1744396965276,0.00017878,83861.0,83860.0,0.8006936]
[1744396966174,0.00021878,83861.0,83860.0,0.8006936]
[1744396969764,0.00021878,83861.0,83860.0,0.4398936]
[1744396969964,0.00021878,83861.0,83860.0,0.8006936]
[1744396970370,0.03961878,83861.0,83860.0,0.8006936]
[1744396970571,0.00021878,83861.0,83860.0,0.8006936]
[1744396975369,0.00021878,83861.0,83860.0,0.7591936]
[1744396975573,0.00021878,83861.0,83860.0,0.8007936]
[1744396975879,0.00017878,83861.0,83860.0,0.8007936]
[1744396976068,0.00021878,83861.0,83860.0,0.8007936]
[1744396977786,0.00017878,83861.0,83860.0,0.8007936]
[1744396978679,0.00021878,83861.0,83860.0,0.8007936]
[1744396982989,5.401e-05,83868.0,83867.0,0.1192936]
[1744396983192,5.401e-05,83868.0,83867.0,0.7184836]
[1744396983489,0.0428,83881.0,83877.0,0.1192794]
[1744396983490,0.0803,83878.0,83877.0,0.1192794]
[1744396983683,0.0803,83878.0,83877.0,0.4800794]
[1744396984084,0.0803,83878.0,83877.0,0.5204794]
[1744396985577,5.401e-05,83885.0,83884.0,0.1192694]
[1744396985781,0.00017889,83886.0,83884.0,0.1192694]
[1744396985782,0.00017889,83886.0,83885.0,0.357658]
[1744396987988,0.00021889,83886.0,83885.0,0.357658]
[1744396988684,0.119268,83885.0,83884.0,0.3608]
[1744396988887,0.1789141,83880.0,83879.0,0.1789114]
[1744396989291,0.1789141,83880.0,83879.0,0.0596377]
[1744396989488,0.119278,83878.0,83877.0,0.3608]
[1744396989691,0.5397188,83878.0,83877.0,0.1192794]
[1744396989889,0.1192893,83870.0,83867.0,0.0596468]
[1744396990289,0.2427893,83870.0,83869.0,0.11946889]
[1744396990684,0.2427893,83870.0,83869.0,0.00017889]
[1744396990996,0.4927893,83870.0,83869.0,0.00017889]
[1744396991587,0.119295,83866.0,83863.0,0.1192989]
[1744396991988,0.1193078,83857.0,83856.0,0.33333708]
[1744396992191,0.4801078,83857.0,83856.0,0.33333708]
[1744396992992,0.5198078,83857.0,83856.0,0.33333708]
[1744396993192,0.5198078,83857.0,83856.0,0.21402788]
[1744396993492,0.7698078,83857.0,83856.0,0.33333708]
[1744396993700,0.5198078,83857.0,83856.0,0.33333708]
[1744396994812,0.4005,83857.0,83856.0,0.33333708]
[1744396995106,0.0397,83857.0,83856.0,0.33333708]
[1744396995303,0.08084,83857.0,83856.0,0.57172708]
[1744396996406,0.0808,83857.0,83856.0,0.3576992]
[1744396996609,0.0002518,83865.0,83864.0,0.1192979]
[1744396996801,0.00017889,83865.0,83864.0,0.3576879]
[1744396997196,0.00021889,83865.0,83864.0,0.3576879]
[1744396998412,0.04051889,83865.0,83864.0,0.3576879]
[1744396998616,0.07981889,83865.0,83864.0,0.3576879]
[1744396998915,0.19911529,83865.0,83864.0,0.3576879]
[1744396999717,0.19911529,83865.0,83864.0,0.1192979]
[1744397000415,0.1193036,83860.0,83859.0,0.3608]
[1744397000606,0.1193036,83860.0,83859.0,0.480105]
[1744397001018,0.1193036,83860.0,83859.0,0.119305]
[1744397001204,0.1594036,83860.0,83859.0,0.119305]
[1744397004515,0.2024036,83860.0,83859.0,0.119305]
[1744397006015,0.1193064,83858.0,83857.0,0.0596532]
[1744397006215,0.0596565,83854.0,83850.0,0.3608]
[1744397006411,0.1789739,83852.0,83851.0,0.0596579]
[1744397006806,0.1453575,83852.0,83851.0,0.0596579]
[1744397007214,0.1453575,83852.0,83851.0,0.0986579]
[1744397007621,0.1453575,83852.0,83851.0,0.0596579]
[1744397009111,0.1453575,83852.0,83851.0,0.1014579]
[1744397010421,0.1453575,83852.0,83851.0,0.0596579]
[1744397011324,0.1193192,83849.0,83848.0,0.22095869]
[1744397011518,0.1193192,83849.0,83848.0,0.10163859]
[1744397011720,0.5629192,83849.0,83848.0,0.10163859]
[1744397016221,0.4436,83849.0,83848.0,0.10163859]
[1744397016427,0.1600192,83849.0,83848.0,0.34002859]
[1744397016722,0.1600192,83849.0,83848.0,0.38092859]
[1744397016923,0.1600592,83849.0,83848.0,0.38092859]
[1744397017110,0.1600592,83849.0,83848.0,0.00017889]
[1744397017312,0.2006592,83849.0,83848.0,0.00017889]
[1744397017510,0.1193206,83848.0,83847.0,0.00477057]
[1744397017912,0.2001206,83848.0,83847.0,0.00477057]
[1744397018518,0.2001206,83848.0,83830.0,0.1193403]
[1744397018519,0.059661,83847.0,83830.0,0.1193403]
[1744397018721,0.31033448,83840.0,83839.0,0.00017889]
[1744397019020,0.480132,83840.0,83839.0,0.11951229]
[1744397019221,0.602932,83840.0,83839.0,0.00017889]
[1744397019428,1.021532,83840.0,83839.0,0.00017889]
[1744397020027,1.021532,83840.0,83839.0,0.11951229]
[1744397020823,1.021532,83840.0,83839.0,0.00017889]
[1744397021018,1.021532,83840.0,83839.0,0.11951229]
[1744397021723,0.980732,83840.0,83839.0,0.11951229]
[1744397021926,0.980772,83840.0,83839.0,0.20181229]
[1744397022326,0.940072,83840.0,83839.0,0.20181229]
[1744397022933,0.898772,83840.0,83839.0,0.20181229]
[1744397023323,0.480132,83840.0,83839.0,0.20181229]
[1744397023528,0.480172,83840.0,83839.0,0.20181229]
[1744397023923,0.480172,83840.0,83839.0,0.04047889]
[1744397024126,0.159672,83840.0,83839.0,0.40127889]
[1744397024329,0.17772237,83844.0,83843.0,0.1193277]
[1744397024531,5.401e-05,83846.0,83845.0,0.1193249]
[1744397024929,0.17772237,83852.0,83851.0,0.1193164]
[1744397025134,5.401e-05,83854.0,83853.0,0.1193135]
[1744397025329,0.33756454,83862.0,83861.0,0.3576921]
[1744397025633,0.33761855,83862.0,83861.0,0.3576921]
[1744397025821,0.21831785,83862.0,83861.0,0.3576921]
[1744397026024,0.21831785,83862.0,83861.0,0.4000921]
[1744397026430,0.33761855,83862.0,83861.0,0.4000921]
[1744397028634,0.00505401,83862.0,83861.0,0.28079]
[1744397028837,0.106766,83867.0,83866.0,0.119295]
[1744397029135,0.14235467,83874.0,83866.0,0.3608]
[1744397029446,0.21326384,83891.0,83887.0,0.1192652]
[1744397029641,0.21326384,83891.0,83887.0,0.71827631]
[1744397033146,0.1192555,83894.0,83887.0,0.71827631]
[1744397033943,0.1192555,83894.0,83887.0,0.35747631]
[1744397034133,0.0405,83895.0,83887.0,0.35747631]
[1744397034134,0.1192573,83893.0,83887.0,0.35747631]
[1744397034334,0.0405,83895.0,83887.0,0.36641272]
[1744397034544,0.1242637,83888.0,83887.0,0.12820161]
[1744397035341,0.1646637,83888.0,83887.0,0.12820161]
[1744397035546,0.005,83888.0,83887.0,0.76631272]
[1744397036044,0.00504,83888.0,83887.0,0.76631272]
[1744397038043,0.04774,83888.0,83887.0,0.76631272]
[1744397038444,0.2067037,83888.0,83887.0,0.00893641]
[1744397038650,0.2482037,83888.0,83887.0,0.1192652]
[1744397042941,0.1192723,83882.0,83881.0,0.1607725]
[1744397043140,0.3608,83882.0,83881.0,0.16960984]
[1744397043546,0.3608,83882.0,83881.0,0.21230984]
[1744397043851,0.4800723,83882.0,83881.0,0.21230984]
[1744397044254,0.005,83888.0,83887.0,0.1192652]
[1744397044550,0.3608,83911.0,83887.0,0.1192652]
[1744397044551,0.3608,83923.0,83899.0,0.23821111]
[1744397044755,0.3608,83924.0,83910.0,0.0596162]
[1744397044953,0.21326384,83919.0,83913.0,0.35743931]
[1744397045147,0.21326384,83919.0,83913.0,0.44163931]
[1744397045748,0.0403,83918.0,83913.0,0.44163931]
[1744397046057,0.1242268,83914.0,83913.0,0.44163931]
[1744397046247,0.1242268,83914.0,83913.0,0.2034282]
[1744397046447,0.1242268,83914.0,83913.0,0.0415]
[1744397046952,0.2465268,83914.0,83913.0,0.0415]
[1744397047144,0.6073268,83914.0,83913.0,0.0415]
[1744397047345,0.0596183,83908.0,83905.0,0.00017878]
[1744397047545,0.2613564,83907.0,83906.0,0.1192381]
[1744397047748,0.2613564,83907.0,83906.0,0.1595381]
[1744397047955,0.1421183,83907.0,83906.0,0.1595381]
[1744397048155,0.1421183,83907.0,83906.0,0.2020381]
[1744397049446,0.1421183,83907.0,83906.0,0.1595381]
[1744397049646,0.1421183,83907.0,83906.0,0.0403]
[1744397049840,0.1421183,83907.0,83906.0,0.1595381]
[1744397052453,0.1421183,83907.0,83906.0,0.0403]
[1744397052658,0.1421183,83907.0,83905.0,0.05979848]
[1744397052659,0.1192381,83906.0,83905.0,0.00017878]
[1744397052851,0.1192381,83906.0,83905.0,0.11941838]
[1744397053050,0.0407,83906.0,83905.0,0.35762949]
[1744397053250,0.0408,83913.0,83912.0,0.1192296]
[1744397053451,5.401e-05,83915.0,83913.0,0.1192282]
[1744397053749,0.1640268,83914.0,83913.0,0.39733931]
[1744397053944,0.1640268,83914.0,83913.0,0.43623931]
[1744397056257,0.2478268,83914.0,83913.0,0.43623931]
[1744397058564,0.1286,83914.0,83913.0,0.43623931]
[1744397058862,0.005,83914.0,83913.0,0.43623931]
[1744397059452,0.00504,83914.0,83913.0,0.43623931]
[1744397059855,0.00504,83914.0,83913.0,0.47763931]
[1744397059856,0.005,83914.0,83913.0,0.47763931]
[1744397060055,0.00504,83914.0,83913.0,0.47763931]
[1744397060658,0.00017878,83922.0,83921.0,0.1192168]
[1744397060860,0.00017878,83922.0,83921.0,0.80142791]
[1744397061060,0.00021878,83922.0,83921.0,0.80142791]
[1744397062663,0.36101878,83922.0,83921.0,0.39792791]
[1744397062861,0.0596117,83917.0,83903.0,0.148501]
[1744397063067,0.1192367,83907.0,83906.0,0.238476]
[1744397063363,0.3608,83911.0,83908.0,0.2384663]
[1744397063563,0.098515,83912.0,83911.0,0.119231]
[1744397063864,0.0389,83912.0,83911.0,0.35744211]
[1744397064066,0.0389,83912.0,83911.0,0.39844211]
[1744397064256,0.0389,83912.0,83911.0,0.43974211]
[1744397064456,0.1581296,83912.0,83911.0,0.43974211]
[1744397065264,0.2010296,83912.0,83911.0,0.43974211]
[1744397065465,0.2010296,83912.0,83911.0,0.160531]
[1744397066068,0.0596184,83907.0,83906.0,0.1192353]
[1744397066270,0.0596184,83907.0,83906.0,0.1788536]
[1744397066664,0.1192381,83906.0,83905.0,0.28495157]
[1744397066971,0.1192381,83906.0,83905.0,0.00017878]
[1744397067266,0.1585381,83906.0,83905.0,0.00017878]
[1744397067470,0.1988381,83906.0,83905.0,0.00017878]
[1744397070369,0.1988381,83906.0,83905.0,0.11941838]
[1744397070370,0.6174381,83906.0,83905.0,0.11941838]
[1744397070767,0.6174381,83906.0,83905.0,0.00017878]
[1744397071570,0.6174381,83906.0,83905.0,0.11941838]
[1744397071964,0.6174381,83906.0,83905.0,0.00017878]
[1744397072164,0.6174381,83906.0,83905.0,0.11941838]
[1744397072767,0.6174381,83906.0,83905.0,0.15941838]
[1744397072968,0.6174781,83906.0,83905.0,0.15941838]
[1744397073275,0.9379781,83906.0,83905.0,0.39762949]
[1744397073472,0.5771781,83906.0,83905.0,0.43622949]
[1744397073672,0.6187781,83906.0,83905.0,0.43622949]
[1744397074165,0.5771781,83906.0,83905.0,0.43622949]
[1744397074366,0.5771381,83906.0,83905.0,0.43622949]
[1744397074570,0.41864,83906.0,83905.0,0.43622949]
[1744397074771,0.4186,83906.0,83905.0,0.43622949]
[1744397074968,0.41864,83906.0,83905.0,0.43622949]
[1744397075972,0.4186,83906.0,83905.0,0.43622949]
[1744397076174,0.1192351,83909.0,83908.0,0.1192353]
[1744397076474,0.1192351,83909.0,83908.0,0.35744641]
[1744397076770,0.1192351,83909.0,83908.0,0.43604641]
[1744397077167,0.1192351,83909.0,83908.0,0.0393]
[1744397077373,0.2004351,83909.0,83908.0,0.0393]
[1744397077765,0.1192381,83906.0,83905.0,0.00017878]
[1744397077969,0.4800381,83906.0,83905.0,0.00017878]
[1744397078270,0.5612381,83906.0,83905.0,0.00017878]
[1744397080074,0.5612381,83906.0,83905.0,0.11941838]
[1744397081066,0.2004381,83906.0,83905.0,0.11941838]
[1744397081270,0.5612381,83906.0,83905.0,0.16191838]
[1744397081868,0.5612781,83906.0,83905.0,0.16191838]
[1744397082070,0.5612781,83906.0,83905.0,0.00017878]
[1744397084667,0.5612781,83906.0,83905.0,0.11941838]